Cogmind - Beta 12 @@@ ROGUE MODE // 2023.03.22 @ 13:38:24 Player: wchar_t Result: Destroyed by H-66 Slayer with Gauss Rifle Performance ------------- Evolutions (4) 2000 Regions Visited (13) 2600 Robots Destroyed (144) 720 Value Destroyed (6183) 6183 Prototype IDs (32) 640 Alien Tech Used (0) 0 Bonus (3484) 3484 TOTAL SCORE: 15627 Bonus ------- High Alert Combat Kills 187 Follower Combat Kills 1143 Entered Garrisons 600 Used RIF Installer 1500 Aligned with FarCom 300 Friendly Fire -246 Cogmind --------- Core Integrity 0/850 Matter 97/300 Energy 100/100 System Corruption 7% Temperature Cool (0) Movement Core (700) Ox13 Location -6/Factory Parts ------- > --- POWER (1) -------- (None) > --- PROPULSION (4) --- (None) > --- UTILITY (7) ------ High-capacity Storage Unit Relay Coupler [Grunt] (18) > --- WEAPON (3) ------- (None) > --- INVENTORY (20) --- Light Nuclear Core Advanced Heat Sink High-capacity Storage Unit Experimental Sensor Array Advanced ECM Suite Relay Coupler [NC] (24) Relay Coupler [NC] (28) Relay Coupler [Swarmer] (41) Relay Coupler [Grunt] (18) Relay Coupler [Behemoth] (11) Long-range Tractor Beam AWS/Autocannon Long-range Missile Launcher Remote Datajack Impact Mace Peak State ------------ > --- POWER ------------ Light Nuclear Core > --- PROPULSION ------- Medium Treads Medium Treads Carbon-fiber Leg > --- UTILITY ---------- Advanced Heat Sink High-capacity Storage Unit Kinecellerator Improved Light Armor Plating Improved Light Armor Plating Relay Coupler [Grunt] Relay Coupler [Sentry] > --- WEAPON ----------- AWS/Autocannon > --- INVENTORY -------- High-capacity Storage Unit High-capacity Matter Pod Experimental Sensor Array Advanced ECM Suite Relay Coupler [NC] Relay Coupler [NC] Relay Coupler [Swarmer] Relay Coupler [Behemoth] Long-range Tractor Beam Heavy Plasma Cannon Minigun Long-range Missile Launcher Long-range Missile Launcher Scatter Rocket Array Remote Datajack Impact Mace [Rating: 73] Favorites ----------- Power Cooled Ion Engine Engine Cooled Ion Engine Power Core Light Nuclear Core Propulsion Light Treads Treads Light Treads Leg Aluminum Leg Utility High-capacity Storage Unit Device Matter Filter Storage High-capacity Storage Unit Processor Targeting Computer Hackware Relay Coupler [Sentry] Protection Improved Light Armor Plating Weapon Heavy Ion Cannon Energy Gun Medium Laser Energy Cannon Heavy Ion Cannon Ballistic Gun Precision Assault Rifle Ballistic Cannon Assault Cannon Launcher Grenade Launcher Special Weapon Remote Datajack Impact Weapon Impact Mace Special Melee Weapon Datajack Build | -11 -10 -10 -9 -9 -9 -8 -8 -8 -7 -7 -7 -7 -6 ------- Run | Jun Mat Min Mat Min Exi Min Mat Gar Fac Gar Fac Gar Fac Slots Evolved 8 | . . . 2 . . . 2 . 2 . . . 2 Power . | . . . . . . . . . . . . . . Propulsion 2 | . . . 1 . . . . . . . . . 1 Utility 5 | . . . 1 . . . 1 . 2 . . . 1 Weapon 1 | . . . . . . . 1 . . . . . . Parts Attached 179 | 6 4 . 10 2 1 2 30 5 17 14 11 14 63 Power 7 | 1 . . 1 . . . 1 . . . . 1 3 Engine 4 | 1 . . . . . . 1 . . . . . 2 Core 3 | . . . 1 . . . . . . . . 1 1 Reactor . | . . . . . . . . . . . . . . Propulsion 42 | 2 1 . 2 . . . 13 1 4 . 2 1 16 Treads 39 | 2 1 . 1 . . . 13 1 4 . 1 1 15 Leg 3 | . . . 1 . . . . . . . 1 . 1 Wheel . | . . . . . . . . . . . . . . Hover . | . . . . . . . . . . . . . . Flight . | . . . . . . . . . . . . . . Utility 56 | 1 2 . 4 . 1 . 6 . 4 4 7 7 20 Device 19 | . . . 1 . . . 3 . . 1 2 2 10 Storage 5 | 1 1 . 1 . 1 . . . . . . . 1 Processor 3 | . . . . . . . 1 . 1 . . . 1 Hackware 9 | . . . . . . . . . 2 2 . 4 1 Protection 20 | . 1 . 2 . . . 2 . 1 1 5 1 7 Artifact . | . . . . . . . . . . . . . . Weapon 74 | 2 1 . 3 2 . 2 10 4 9 10 2 5 24 Energy Gun 5 | 1 1 . 1 . . . 2 . . . . . . Energy Cannon 18 | . . . 1 1 . 1 4 2 3 1 . 2 3 Ballistic Gun 9 | 1 . . 1 . . . 1 . . 3 . . 3 Ballistic Cannon 11 | . . . . . . . 2 . 1 1 1 2 4 Launcher 13 | . . . . 1 . 1 1 2 1 3 . . 4 Special Weapon 7 | . . . . . . . . . 2 . . 1 4 Impact Weapon 9 | . . . . . . . . . 1 1 1 . 6 Slashing Weapon . | . . . . . . . . . . . . . . Piercing Weapon . | . . . . . . . . . . . . . . Special Melee Weapon 2 | . . . . . . . . . 1 1 . . . Unidentified Prototypes 8 | . . . 1 . . . 3 . 1 . . . 3 Corrupted Parts 1 | . . . . . . . . . . . . . 1 System Corruption 2 | . . . . . . . . . . . . . 2 Parts Lost 55 | . 1 . . . . 1 7 . 4 4 1 5 32 Power 4 | . . . . . . 1 . . . . . 1 2 Propulsion 17 | . . . . . . . 3 . 3 . . 1 10 Utility 18 | . . . . . . . 1 . 1 1 1 2 12 Weapon 16 | . 1 . . . . . 3 . . 3 . 1 8 Highest Loss Streak 10 | . 1 . . . . 1 3 . 1 1 1 3 10 To Critical Strikes 1 | . . . . . . . . . . . . . 1 Average Slot Usage (%) 91 | . 86 100 98 100 100 92 91 100 92 82 96 95 82 Engine 5 | . 14 14 1 . . . 5 9 7 7 7 . 1 Core 2 | . . . 9 11 11 3 . . . . . 6 3 Treads 23 | . 28 28 27 33 33 33 26 27 21 15 15 21 20 Device 7 | . . . 9 11 11 11 8 9 4 3 6 13 11 Storage 8 | . 14 14 11 11 11 11 9 9 7 7 7 7 6 Processor 4 | . . . . . . . 7 9 8 7 7 . . Hackware 7 | . . . . . . . . . 13 16 12 8 13 Protection 8 | . 1 14 12 11 11 11 8 9 7 7 8 13 4 Energy Gun 2 | . 18 28 14 . . . . 1 . . . . . Energy Cannon 7 | . . . 4 10 11 7 10 8 6 6 7 6 5 Ballistic Gun 2 | . 9 . 2 11 11 11 7 . . 1 . . . Ballistic Cannon 4 | . . . . . . . 6 9 5 2 6 6 5 Launcher 1 | . . . . . . 3 . 7 2 1 . . . Impact Weapon 1 | . . . . . . . . . . . 6 . 4 Naked Turns . | . . . . . . . . . . . . . . Heaviest Build 126 | 14 21 21 96 96 96 56 68 68 69 71 80 84 126 Greatest Support 100 | 40 40 40 60 60 60 60 60 63 65 42 62 62 100 Greatest Overweight (x) 19 | . . . 1 1 1 . 2 1 2 1 1 1 19 Average Overweight (x) . | . . . . 1 . . . 1 . 1 1 1 . Largest Inventory Capacity 25 | 8 10 10 25 25 25 20 20 20 20 20 20 20 20 Average Capacity 19 | 6 9 10 16 25 24 20 20 20 20 20 20 20 20 Most Carried 20 | 4 8 9 14 14 18 18 20 20 20 20 20 20 20 Average Carried 17 | 2 6 8 11 14 15 18 19 19 19 19 19 19 18 Final Capacity 25 | 8 10 10 25 25 20 20 20 20 20 20 20 20 20 Final Carried 20 | 4 7 9 14 14 18 18 20 20 19 20 20 20 17 Class Distribution -------------------- 45% | Mutant 37% | Bothacker-Mutant 6% | Scavenger-Skirmisher 5% | Bothacker-Assassin 3% | Scavenger-Mutant Dominant Class ---------------- Mutant | -10/Materials Mutant | -10/Mines Mutant | -9/Materials Mutant | -9/Mines Mutant | -9/Exiles Mutant | -8/Mines Scavenger-Skirmisher | -8/Materials Mutant | -8/Garrison Bothacker-Mutant | -7/Factory Mutant | -7/Garrison Mutant | -7/Factory Bothacker-Mutant | -7/Garrison Bothacker-Mutant | -6/Factory Resources | -11 -10 -10 -9 -9 -9 -8 -8 -8 -7 -7 -7 -7 -6 ----------- Run | Jun Mat Min Mat Min Exi Min Mat Gar Fac Gar Fac Gar Fac Matter Collected 3950 | 192 358 43 88 33 . 20 778 74 428 238 276 374 1048 Remotely . | . . . . . . . . . . . . . . Salvage Created 4728 | . 223 84 288 20 . 35 1197 124 511 210 311 366 1359 Parts 240 | . 18 5 17 4 . 5 57 23 22 6 18 7 58 Haulers Intercepted 4 | . . . 1 . . . 1 . . . . . 2 Recyclers Shooed 3 | . . . 1 . . . . . . . . . 2 Parts Field Recycled . | . . . . . . . . . . . . . . Retrieved Matter . | . . . . . . . . . . . . . . Parts Self-Destructed . | . . . . . . . . . . . . . . Prevented . | . . . . . . . . . . . . . . Kills | -11 -10 -10 -9 -9 -9 -8 -8 -8 -7 -7 -7 -7 -6 ------- Run | Jun Mat Min Mat Min Exi Min Mat Gar Fac Gar Fac Gar Fac Combat Hostiles Destroyed 109 | . 5 2 3 3 . 2 17 14 13 7 6 8 29 Melee 2 | . . . . . . . . . . . . . 2 Guns 15 | . 5 1 1 . . 1 4 1 . 1 . . 1 Cannons 47 | . . . 2 . . . 7 2 9 3 6 7 11 AOE 34 | . . . . 3 . 1 3 11 3 3 . . 10 Classes Destroyed 16 | . 2 . 3 1 . 1 3 1 1 . . 1 3 Worker 5 | . . . . . . . 2 . . . . . 3 Builder 7 | . . . . . . 1 1 . . . 1 . 4 Tunneler 3 | . . . . . . . . . . . . . 3 Hauler 4 | . . . 1 . . . 1 . . . . . 2 Recycler 6 | . . . 1 . . . 3 . 1 . . . 1 Watcher 9 | . 1 . 1 . . . 4 . 1 . 1 . 1 Swarmer 24 | . . . . 3 . . . 11 4 3 . 1 2 Saboteur 1 | . . . . . . . . . . . . . 1 Grunt 44 | . 5 2 2 . . 2 11 2 4 3 2 1 10 Brawler 4 | . . . . . . . . . . . . 3 1 Duelist 5 | . . . . . . . . 1 . . . 1 3 Sentry 10 | . . . 1 . . . 4 . 1 . 1 2 1 Specialist 2 | . . . . . . . . . . . . . 2 Hunter 5 | . . . . . . . 1 . . . . . 4 Programmer 12 | . . . . . . . . . 4 1 3 . 4 Heavy 2 | . . . . . . . 1 . . . . . 1 Thug 1 | . . . . . . . . . . . . 1 . Best Kill Streak 15 | . 4 1 2 3 . 2 7 4 4 3 2 3 15 Combat Bots Only 7 | . 2 1 1 3 . 1 4 4 4 3 2 3 7 Max Kills in Single Turn 4 | . 1 1 1 3 . 1 2 4 1 2 1 1 3 Gunslinging . | . . . . . . . . . . . . . . Exploded 4 | . . . . 3 . 1 2 4 1 2 . . 3 Melee 1 | . . . . . . . . . . . . . 1 Uniques/NPCs Destroyed . | . . . . . . . . . . . . . . Combat | -11 -10 -10 -9 -9 -9 -8 -8 -8 -7 -7 -7 -7 -6 -------- Run | Jun Mat Min Mat Min Exi Min Mat Gar Fac Gar Fac Gar Fac Damage Taken 10312 | . 390 82 96 41 . 202 1587 82 1125 421 418 924 4944 Core 1624 | . 95 . . 14 . 16 199 23 221 75 60 70 851 Absorbed by Shields 100 | . . . . . . . . . . 9 . 69 22 Regen/Repaired (Parts) 261 | . . . . . . . 261 . . . . . . Core Remaining (%) 70 | 100 . 62 . . . 92 . 59 . . . 39 . Volleys Fired 353 | . 22 7 14 4 . 12 66 18 49 15 18 41 87 Largest 3 | . 2 2 2 1 . 2 3 3 2 2 2 2 3 Hottest 180 | . 90 90 131 68 . 91 140 180 124 109 113 113 165 Shots Fired 610 | . 44 14 27 4 . 17 143 25 76 26 39 67 128 Gun 147 | . 44 14 23 . . 5 46 3 . 2 . . 10 Cannon 397 | . . . 4 3 . 5 92 11 68 19 39 58 98 Launcher 46 | . . . . 1 . 7 5 11 5 5 . . 12 Special 20 | . . . . . . . . . 3 . . 9 8 Kinetic 259 | . 17 . 1 . . 5 88 5 25 8 20 33 57 Thermal 285 | . 27 14 26 3 . 5 50 9 43 13 19 25 51 Explosive 46 | . . . . 1 . 7 5 11 5 5 . . 12 Electromagnetic . | . . . . . . . . . . . . . . Robot Hit Streak 20 | . 7 6 16 3 . 13 10 6 12 18 5 20 12 Robot Miss Streak 5 | . 2 2 2 . . 2 2 1 3 2 2 4 5 Penetration Max 1 | . . . . . . . . . . . . 1 . Secondary Targets 1 | . 1 . . . . . . . . . . . . Max Gunslinging Chain 1 | . 1 . . . . . . . . . . . . Autonomous 2 | . . . . . . . . . . . . . 2 Shots Hit Robots 413 | . 31 10 22 1 . 14 89 5 47 19 23 40 112 Core Hits 249 | . 12 4 10 2 . 7 48 19 22 12 9 15 89 Critical Kills 8 | . . . . . . . 4 . 1 . . 1 2 Critical Parts Destroyed 6 | . . . . . . . 1 . . . 1 . 4 Critical Strikes 21 | . . 1 . . . . 5 . 2 . 3 2 8 Burn 1 | . . 1 . . . . . . . . . . . Meltdown 7 | . . . . . . . 4 . 1 . . 1 1 Destroy 1 | . . . . . . . 1 . . . . . . Blast 6 | . . . . . . . . . 1 . 2 1 2 Smash 6 | . . . . . . . . . . . 1 . 5 Melee Attacks 50 | . . . . . . . . . 1 7 2 . 40 Impact 46 | . . . . . . . . . . 4 2 . 40 Slashing . | . . . . . . . . . . . . . . Piercing . | . . . . . . . . . . . . . . Sneak Attacks 9 | . . . . . . . . . 1 . 1 . 7 Combat Hostiles . | . . . . . . . . . . . . . . Follow-up Attacks . | . . . . . . . . . . . . . . Damage Inflicted 15215 | 2 392 126 363 146 . 594 2587 917 1476 551 719 1036 6306 Guns 1907 | . 392 120 302 . . 69 770 16 . 37 . . 201 Cannons 6637 | . . . 45 . . 102 1254 73 1124 396 655 1028 1960 Explosions 5038 | . . . . 146 . 420 553 828 338 118 . . 2635 Melee 1561 | . . . . . . . . . . . 64 . 1497 Ramming 72 | 2 . 6 16 . . 3 10 . 14 . . 8 13 Kinetic 4147 | . 148 . . . . 69 1281 21 398 169 326 593 1142 Thermal 4397 | . 244 120 347 . . 102 743 68 726 264 329 435 1019 Explosive 4859 | . . . . 146 . 420 553 828 338 118 . . 2456 Electromagnetic 179 | . . . . . . . . . . . . . 179 Impact 1561 | . . . . . . . . . . . 64 . 1497 Slashing . | . . . . . . . . . . . . . . Piercing . | . . . . . . . . . . . . . . Highest Corruption 8 | . 4 4 . . . . . . 6 8 8 6 7 Average Corruption 4 | . 2 4 . . . . . . 2 7 4 5 3 Corruption Purged 13 | . . . . . . . . . . . 5 . 8 Corruption Blocked . | . . . . . . . . . . . . . . Effects 202 | . 10 16 . . . . . . 22 41 29 43 41 Message Errors 55 | . . 5 . . . . . . 8 17 6 13 6 Matter Fused 42 | . 5 3 . . . . . . 5 7 3 8 11 Heat Flow Errors 25 | . 2 1 . . . . . . 2 4 5 5 6 Energy Discharges 20 | . . 2 . . . . . . 4 3 3 4 4 Parts Rejected 1 | . . . . . . . . . . . 1 . . Parts Fused 3 | . . . . . . . . . . 2 . . 1 Data Loss (minor) 28 | . 2 2 . . . . . . . 4 5 6 9 Data Loss (major) 9 | . 1 1 . . . . . . 1 . 2 2 2 Misfires 13 | . . 1 . . . . . . 2 3 4 3 . Alerts 2 | . . . . . . . . . . . . 2 . Weapon Failures 4 | . . 1 . . . . . . . 1 . . 2 Overload Shots . | . . . . . . . . . . . . . . Overflow Damage 864 | . . . . 17 . 5 21 . 47 17 104 . 653 Projectiles 113 | . . . . . . 5 21 . 8 14 40 . 25 Explosions 127 | . . . . 17 . . . . 39 3 . . 68 Melee 624 | . . . . . . . . . . . 64 . 560 Knockbacks 39 | . . . . . . . 4 1 6 2 6 1 19 Impact 7 | . . . . . . . . . . . 1 . 6 Kinetic 31 | . . . . . . . 4 1 6 2 5 1 12 Secondary 1 | . . . . . . . . . . . . . 1 Self-Inflicted Damage 439 | . . . . 17 . 3 . . 40 54 . . 325 Shots 19 | . . . . 1 . 1 . . 1 2 . . 14 Rammed 15 | 1 1 3 4 . . . 2 . 1 . . 2 1 Targets Rammed 17 | 1 1 3 4 . . 1 2 . 2 . . 2 1 Kicked . | . . . . . . . . . . . . . . Crushed 2 | . . . . . . 1 . . 1 . . . . Highest Temperature 326 | . 187 224 60 6 . . 195 36 223 149 288 326 288 Average Temperature 80 | . 100 82 23 3 . . 47 13 58 35 107 131 82 Received Heat Transfer 2022 | . 216 66 45 . . 108 567 27 180 105 117 186 405 Effects 4 | . . . . . . . . . . . 1 3 . Energy Bleed 1 | . . . . . . . . . . . 1 . . Interference 3 | . . . . . . . . . . . . 3 . Siege Activations . | . . . . . . . . . . . . . . Robots Corrupted . | . . . . . . . . . . . . . . Combat Hostiles . | . . . . . . . . . . . . . . Parts Fried 12 | . . . . . . . . . . . 1 . 11 Impact Corruptions 23 | . . . . . . . . . . . 3 . 20 Robots Melted 8 | . . 1 . . . . 4 . 1 . . 1 1 Combat Hostiles 7 | . . 1 . . . . 3 . 1 . . 1 1 Parts Melted 19 | . . 2 . . . . 5 . 5 1 1 4 1 Heat Transferred 7581 | . 692 384 814 . . 185 1349 137 1261 333 407 497 1522 Parts Sabotaged 7 | . . . . . . . . . . . . . 7 Parts Stolen . | . . . . . . . . . . . . . . Parts Stripped . | . . . . . . . . . . . . . . Power Chain Reactions 2 | . . . . . . . . . . . . . 2 Missiles Intercepted . | . . . . . . . . . . . . . . Alert | -11 -10 -10 -9 -9 -9 -8 -8 -8 -7 -7 -7 -7 -6 ------- Run | Jun Mat Min Mat Min Exi Min Mat Gar Fac Gar Fac Gar Fac Peak Influence 1133 | . 142 80 157 103 . 59 288 741 433 537 279 1133 801 Initial 594 | . . . 31 12 . . 22 161 388 135 277 56 594 Average 244 | . 31 27 45 88 . 38 109 415 196 334 119 555 341 Maximum Alert Level 4 | . . . . . . . 1 3 2 2 1 4 3 Low Security (%) 51 | 100 100 100 100 100 . 100 78 3 63 22 74 31 11 Level 1 30 | . . . . . . . 21 52 25 35 25 20 60 Level 2 13 | . . . . . . . . 35 11 41 . 6 25 Level 3 3 | . . . . . . . . 8 . . . 30 1 Level 4 1 | . . . . . . . . . . . . 10 . Level 5 . | . . . . . . . . . . . . . . High Security . | . . . . . . . . . . . . . . Max Security . | . . . . . . . . . . . . . . Squads Dispatched 26 | . . . 1 . . . 4 . 7 . 3 . 11 Investigation 6 | . . . . . . . 1 . 1 . 1 . 3 Extermination 9 | . . . . . . . . . 3 . 2 . 4 Reinforcement 10 | . . . 1 . . . 3 . 3 . . . 3 Assault 1 | . . . . . . . . . . . . . 1 Garrison . | . . . . . . . . . . . . . . Intercept . | . . . . . . . . . . . . . . Searches Triggered . | . . . . . . . . . . . . . . Construction Impeded 2 | . . . . . . . . . 1 . . . 1 Haulers Reinforced . | . . . . . . . . . . . . . . Active Scanning Responses . | . . . . . . . . . . . . . . Cargo Convoy Interrupts 1 | . . . . . . . . . . . . . 1 Stealth | -11 -10 -10 -9 -9 -9 -8 -8 -8 -7 -7 -7 -7 -6 --------- Run | Jun Mat Min Mat Min Exi Min Mat Gar Fac Gar Fac Gar Fac Distress Signals 10 | . . . 2 . . . 3 . 2 . . . 3 Communications Jammed . | . . . . . . . . . . . . . . Distress Signals . | . . . . . . . . . . . . . . Times Spotted 196 | . 6 3 11 3 . 3 28 9 22 11 8 35 57 Peak Tracking Total 8 | . 3 2 4 3 . 3 5 4 5 4 2 6 8 Tactical Retreats 12 | . . 1 1 . . . 2 . 1 2 . 1 4 Traps | -11 -10 -10 -9 -9 -9 -8 -8 -8 -7 -7 -7 -7 -6 ------- Run | Jun Mat Min Mat Min Exi Min Mat Gar Fac Gar Fac Gar Fac Traps Triggered 31 | . 4 . . . . . 2 . 3 7 2 8 5 Indirectly 3 | . . . . . . . . . . . . . 3 Trap Hack Attempts . | . . . . . . . . . . . . . . Triggered . | . . . . . . . . . . . . . . Disarmed . | . . . . . . . . . . . . . . Reprogrammed . | . . . . . . . . . . . . . . Reused . | . . . . . . . . . . . . . . Traps Extracted . | . . . . . . . . . . . . . . Installed . | . . . . . . . . . . . . . . Triggered 1 | . . . . 1 . . . . . . . . . Machines | -11 -10 -10 -9 -9 -9 -8 -8 -8 -7 -7 -7 -7 -6 ---------- Run | Jun Mat Min Mat Min Exi Min Mat Gar Fac Gar Fac Gar Fac Machines Disabled 21 | . 1 . . . . . 2 3 1 2 1 2 9 Max in Single Turn 3 | . 1 . . . . . 1 1 1 1 1 1 3 Garrison Access 1 | . . . . . . . . . . . . . 1 Garrison Relay 5 | . . . . . . . . 2 . 1 . 2 . Machines Repaired . | . . . . . . . . . . . . . . Machines Sabotaged . | . . . . . . . . . . . . . . Overloaded Fab Kills . | . . . . . . . . . . . . . . Hacking | -11 -10 -10 -9 -9 -9 -8 -8 -8 -7 -7 -7 -7 -6 --------- Run | Jun Mat Min Mat Min Exi Min Mat Gar Fac Gar Fac Gar Fac Machines Accessed 36 | . 1 1 1 . 1 . 7 1 6 1 5 3 9 Terminals 21 | . 1 . 1 . . . 3 1 4 1 1 3 6 Fabricators 5 | . . . . . . . . . 1 . 2 . 2 Repair Stations 1 | . . . . . . . 1 . . . . . . Recycling Units . | . . . . . . . . . . . . . . Scanalyzers 4 | . . . . . . . 2 . . . 1 . 1 Garrison Access 3 | . . . . . . . 1 . 1 . 1 . . Total Hacks 68 | . 1 1 3 . 1 . 18 1 8 1 8 6 20 Successful 36 | . 1 1 3 . 1 . 13 1 2 . 3 2 9 Failed 32 | . . . . . . . 5 . 6 1 5 4 11 Catastrophic 11 | . . . . . . . 1 . 4 1 2 1 2 Database Lockouts . | . . . . . . . . . . . . . . Manual 21 | . . . 3 . 1 . 7 . 4 . . . 6 Terminals 38 | . 1 . 3 . . . 7 1 6 1 1 6 12 Fabricators 10 | . . . . . . . . . 1 . 4 . 5 Repair Stations 6 | . . . . . . . 6 . . . . . . Recycling Units . | . . . . . . . . . . . . . . Scanalyzers 9 | . . . . . . . 4 . . . 2 . 3 Garrison Access 3 | . . . . . . . 1 . 1 . 1 . . Terminal Hacks 14 | . 1 1 3 . 1 . 3 1 . . . 2 2 Robot Analysis 3 | . . . 3 . . . . . . . . . . Open Door 1 | . . 1 . . . . . . . . . . . Garrison Index 1 | . . . . . . . . . . . . . 1 Unreport Threat 1 | . . . . . . . . . . . . . 1 Zone Layout 4 | . 1 . . . . . 3 . . . . . . Patrol Navigation 2 | . . . . . . . . 1 . . . 1 . Security Stations 1 | . . . . . . . . . . . . 1 . EX-Prototype ID Bank 1 | . . . . . 1 . . . . . . . . Fabricator Hacks 3 | . . . . . . . . . 1 . . . 2 Network Status 1 | . . . . . . . . . 1 . . . . Load Schematic 1 | . . . . . . . . . . . . . 1 Build 1 | . . . . . . . . . . . . . 1 Repair Station Hacks 4 | . . . . . . . 4 . . . . . . Scan Component 2 | . . . . . . . 2 . . . . . . Repair 2 | . . . . . . . 2 . . . . . . Recycling Unit Hacks . | . . . . . . . . . . . . . . Scanalyzer 9 | . . . . . . . 4 . . . 2 . 3 Insert Component 4 | . . . . . . . 2 . . . 1 . 1 Analyze 5 | . . . . . . . 2 . . . 1 . 2 Garrison Access Hacks 3 | . . . . . . . 1 . 1 . 1 . . Unlock Access 3 | . . . . . . . 1 . 1 . 1 . . Unauthorized Hacks 3 | . . . . . . . 1 . . . . . 2 Terminals 2 | . . . . . . . 1 . . . . . 1 Botnet 2 | . . . . . . . 1 . . . . . 1 Fabricators 1 | . . . . . . . . . . . . . 1 Liberate 1 | . . . . . . . . . . . . . 1 Repair Stations . | . . . . . . . . . . . . . . Recycling Units . | . . . . . . . . . . . . . . Scanalyzers . | . . . . . . . . . . . . . . Garrison Access . | . . . . . . . . . . . . . . Data Cores Recovered . | . . . . . . . . . . . . . . Used . | . . . . . . . . . . . . . . Hacking Detections 26 | . . . 1 . . . 4 1 5 1 4 2 8 Full Trace Events 5 | . . . . . . . . . 1 . 1 1 2 Feedback Events . | . . . . . . . . . . . . . . Feedback Blocked . | . . . . . . . . . . . . . . Robot Schematics Acquired . | . . . . . . . . . . . . . . Robots Built . | . . . . . . . . . . . . . . Authchips . | . . . . . . . . . . . . . . Time . | . . . . . . . . . . . . . . Total Robot Build Rating . | . . . . . . . . . . . . . . Part Schematics Acquired 4 | . . . . . . . 2 . . . 1 . 1 Parts Built . | . . . . . . . . . . . . . . Authchips . | . . . . . . . . . . . . . . Time 73 | . . . . . . . . . . . . . 73 Total Part Build Rating . | . . . . . . . . . . . . . . Parts Repaired 2 | . . . . . . . 2 . . . . . . Time 64 | . . . . . . . 64 . . . . . . Parts Recycled . | . . . . . . . . . . . . . . Recycled Matter . | . . . . . . . . . . . . . . Retrieved Matter . | . . . . . . . . . . . . . . Retrieved Components . | . . . . . . . . . . . . . . Parts Scanalyzed 4 | . . . . . . . 2 . . . 1 . 1 Part Schematics Acquired 4 | . . . . . . . 2 . . . 1 . 1 Parts Damaged 1 | . . . . . . . . . . . . . 1 Bothacking | -11 -10 -10 -9 -9 -9 -8 -8 -8 -7 -7 -7 -7 -6 ------------ Run | Jun Mat Min Mat Min Exi Min Mat Gar Fac Gar Fac Gar Fac Used RIF Installer 3 | . . . . . . . . 1 . 1 . 1 . Threat Obfuscator 1 | . . . . . . . . . . . . 1 . Zone Cloak 1 | . . . . . . . . . . 1 . . . Robots Hacked 18 | . . . . . . . . . 3 2 . 6 7 Non-combat 3 | . . . . . . . . . 1 . . . 2 Combat 15 | . . . . . . . . . 2 2 . 6 5 Robot Hacks Applied 18 | . . . . . . . . . 3 2 . 6 7 parse_system 1 | . . . . . . . . . . . . . 1 find_chute 3 | . . . . . . . . . 1 . . . 2 link_complan 1 | . . . . . . . . . . . . 1 . amplify_resonance 2 | . . . . . . . . . . . . 1 1 reboot_system 2 | . . . . . . . . . . . . . 2 overwrite_iff 6 | . . . . . . . . . 2 1 . 2 1 streamctrl_high 1 | . . . . . . . . . . . . 1 . formatsys_high 2 | . . . . . . . . . . 1 . 1 . Relay Couplers Released 25 | . . . . . . . . 10 . 5 . 8 2 Machine Destruction 25 | . . . . . . . . 10 . 5 . 8 2 Attached 9 | . . . . . . . . . 2 2 . 4 1 Fabnet Peak Effective % . | . . . . . . . . . . . . . . Robots Rewired 3 | . . . . . . . . . . . . 3 . Allies Hacked . | . . . . . . . . . . . . . . Hacks Repelled . | . . . . . . . . . . . . . . Allies | -11 -10 -10 -9 -9 -9 -8 -8 -8 -7 -7 -7 -7 -6 -------- Run | Jun Mat Min Mat Min Exi Min Mat Gar Fac Gar Fac Gar Fac Total Allies 16 | . . . . . . . . . 2 2 . 9 3 Largest Group 7 | . . . . . . . . . 1 2 . 7 3 Highest-Rated Group 301 | . . . . . . . . . 16 48 . 301 159 Highest-Rated Ally 95 | . . . . . . . . . 16 32 . 95 95 Total Orders 5 | . . . . . . . . . . 1 . 4 . STAY 3 | . . . . . . . . . . 1 . 2 . FOLLOW 2 | . . . . . . . . . . . . 2 . Ally Attacks 132 | . . . . . . . . . 4 8 . 102 18 Total Damage 4639 | . . . . . . . . . 30 218 . 3361 1030 Kills 35 | . . . . . . . . . . 2 . 24 9 Allies Corrupted 1 | . . . . . . . . . . . . 1 . Allies Melted 1 | . . . . . . . . . . . . 1 . Intel | -11 -10 -10 -9 -9 -9 -8 -8 -8 -7 -7 -7 -7 -6 ------- Run | Jun Mat Min Mat Min Exi Min Mat Gar Fac Gar Fac Gar Fac Robot Analysis Total 3 | . . . 3 . . . . . . . . . . Derelict Logs Recovered 2 | . . 2 . . . . . . . . . . . Drone Launches . | . . . . . . . . . . . . . . Drone Recoveries . | . . . . . . . . . . . . . . Exploration | -11 -10 -10 -9 -9 -9 -8 -8 -8 -7 -7 -7 -7 -6 ------------- Run | Jun Mat Min Mat Min Exi Min Mat Gar Fac Gar Fac Gar Fac Turns Passed 17234 | 81 546 767 572 455 710 58 2723 1395 2253 1401 1580 1615 3078 Spaces Moved 6744 | 47 270 372 263 99 317 16 1071 540 815 461 596 581 1296 Core 9 | 7 . . . . . . . . . . . . 2 Treads 6735 | 40 270 372 263 99 317 16 1071 540 815 461 596 581 1294 Legs . | . . . . . . . . . . . . . . Wheels . | . . . . . . . . . . . . . . Hover . | . . . . . . . . . . . . . . Flight . | . . . . . . . . . . . . . . Fastest Speed 50 | 50 160 160 160 240 160 160 160 240 160 237 237 238 152 Average Speed 210 | 143 160 160 189 240 223 160 208 240 238 237 237 239 174 Slowest Speed 1000 | 160 160 160 240 240 240 160 320 240 320 237 238 245 1000 Overloaded Moves . | . . . . . . . . . . . . . . Propulsion Burnouts . | . . . . . . . . . . . . . . Robots Hopped . | . . . . . . . . . . . . . . Cave-ins Triggered . | . . . . . . . . . . . . . . Exploration Rate (%) 38 | 4 52 78 24 33 70 5 65 55 26 38 16 51 28 Regions Visited 13 Branch Regions 4 Pre-discovered Areas . | . . . . . . . . . . . . . . Known Exits Taken 5 | . . . 1 . . 1 1 . 1 . 1 . . Unknown Exits Taken 5 | 1 1 1 . 1 1 . . . . . . . . Scrap Searched . | . . . . . . . . . . . . . . Spaces Dug 34 | . . . . . . . 3 11 5 3 1 . 11 Terrain Destroyed 300 | . . . . 11 . 46 15 39 15 16 8 . 150 Melee 14 | . . . . . . . . . . 3 1 . 10 Projectile 46 | . . . . . . . 13 . 2 . 7 . 24 AOE 240 | . . . . 11 . 46 2 39 13 13 . . 116 Terrain Rammed . | . . . . . . . . . . . . . . Walls Destroyed . | . . . . . . . . . . . . . . Machines Disabled . | . . . . . . . . . . . . . . Actions | -11 -10 -10 -9 -9 -9 -8 -8 -8 -7 -7 -7 -7 -6 --------- Run | Jun Mat Min Mat Min Exi Min Mat Gar Fac Gar Fac Gar Fac Total 9118 | 57 339 528 309 312 319 30 1437 618 1055 735 728 745 1906 Wait 1556 | . 37 145 2 208 . . 229 42 153 220 87 56 377 Move 6732 | 46 269 371 262 98 316 15 1070 539 815 459 596 580 1296 Hop . | . . . . . . . . . . . . . . Pick Up 79 | 4 4 2 7 . 2 . 19 7 5 4 6 4 15 Fast Attach 80 | 6 3 . 6 . . . 13 . 9 3 7 4 29 Attach 47 | . 1 . 1 . . . 7 2 4 3 3 4 22 Detach 22 | . 1 . 2 . . . 3 . 3 2 1 1 9 Swap 53 | . . . 3 2 1 2 10 3 4 8 1 6 13 Drop 74 | . 1 . 8 . . . 18 7 10 1 7 5 17 Fire 353 | . 22 7 14 4 . 12 66 18 49 15 18 41 87 Melee 50 | . . . . . . . . . 1 7 2 . 40 Ram . | . . . . . . . . . . . . . . Kick . | . . . . . . . . . . . . . . Crush 17 | 1 1 3 4 . . 1 2 . 2 . . 2 1 Escape Stasis 16 | . . . . . . . . . . 12 . 4 . Rewire 39 | . . . . . . . . . . 1 . 38 . Trap . | . . . . . . . . . . . . . . Miscellaneous . | . . . . . . . . . . . . . . Route ------- -11/Junkyard -10/Materials (discovered 2 exits: *Mat / *Min) -10/Mines (discovered 2 exits: *Mat x2) -9/Materials (discovered 6 exits: *Mat x3 / *Min / *Sto x2) -9/Mines (discovered 3 exits: *Mat / *Exi / [*Zio]) -9/Exiles -8/Mines -8/Materials (discovered 3 exits: *Fac x2 / Gar) -8/Garrison (discovered 2 exits: *Fac x2) -7/Factory (discovered 3 exits: *Fac / [*Low] / Gar) -7/Garrison -7/Factory -7/Garrison -6/Factory History --------- Turn | Location | Event 17 | -11/Junkyard | Discovered new exit (range 16) 82 | -11/Junkyard | Entered Materials 226 | -10/Materials | Discovered new exit (range 16) 307 | -10/Materials | Build established: Mutant 478 | -10/Materials | Discovered new exit (range 5) 628 | -10/Materials | Entered Mines 729 | -10/Mines | Met a Derelict who couldn't figure out how to use a Trap Extractor 896 | -10/Mines | Learned 8 Materials zone layouts 1019 | -10/Mines | Discovered new exit (range 6) 1101 | -10/Mines | Found a damaged Exp. Sensor Array with a note attached 1104 | -10/Mines | Found Prototype Device 1256 | -10/Mines | Discovered new exit (range 12) 1310 | -10/Mines | Learned 8 Materials zone layouts 1395 | -10/Mines | Entered Materials 1395 | -9/Materials | Evolved 2 slots: Propulsion x1, Utility x1 1395 | -9/Materials | Discovered new exit (range 15) 1396 | -9/Materials | Identified exit to Storage 1396 | -9/Materials | Identified exit to Materials 1396 | -9/Materials | Identified exit to Mines 1967 | -9/Materials | Entered Mines 1986 | -9/Mines | Met a Derelict bent on vengeance 2016 | -9/Mines | Discovered exit to Materials (range 15) 2141 | -9/Mines | Assembled infested the area 2149 | -9/Mines | A Derelict revealed a hidden shortcut to a safe place 2398 | -9/Mines | Met 8R-AWN 2412 | -9/Mines | Discovered new exit (range 5) 2422 | -9/Mines | Entered Exiles 2482 | -9/Exiles | Welcomed by 8R-AWN 2521 | -9/Exiles | Met EX-HEX 2588 | -9/Exiles | Met EX-BIN 2614 | -9/Exiles | Aligned with FarCom system 2617 | -9/Exiles | Given EX-Vault access code 2684 | -9/Exiles | Opened EX-Vault 2706 | -9/Exiles | Found AWS/Autocannon 2755 | -9/Exiles | Warned to stay clear of 0b10 Research branches 2834 | -9/Exiles | Met EX-DEC 3116 | -9/Exiles | Discovered new exit (range 11) 3132 | -9/Exiles | Left Exiles lab with AWS/Autocannon 3132 | -9/Exiles | Entered Mines 3132 | -8/Mines | Discovered exit to Materials (range 12) 3190 | -8/Mines | Entered Materials 3190 | -8/Materials | Evolved 2 slots: Utility x1, Weapon x1 4044 | -8/Materials | Repaired Lgt. Treads 4083 | -8/Materials | Repaired Imp. Light Armor Plating 4435 | -8/Materials | Build established: Scavenger-Skirmisher 4527 | -8/Materials | Identified Exp. Sensor Array 5054 | -8/Materials | Discovered new exit (range 16) 5479 | -8/Materials | Lost 3 parts (1n2w) 5504 | -8/Materials | Discovered new exit (range 11) 5824 | -8/Materials | Identified exit to Garrison 5832 | -8/Materials | Build established: Mutant 5913 | -8/Materials | Entered Garrison 5958 | -8/Garrison | Triggered checkpoint 6029 | -8/Garrison | Garrison Relay disabled 6247 | -8/Garrison | Build established: Skirmisher 6479 | -8/Garrison | Installed Relay Interface Framework 6570 | -8/Garrison | Build established: Mutant 6695 | -8/Garrison | Triggered checkpoint 6850 | -8/Garrison | Discovered new exit (range 11) 6932 | -8/Garrison | Triggered checkpoint 7063 | -8/Garrison | Discovered new exit (range 12) 7158 | -8/Garrison | Triggered checkpoint 7187 | -8/Garrison | Garrison Relay disabled 7308 | -8/Garrison | Entered Factory 7308 | -7/Factory | Evolved 2 slots: Utility x2 7947 | -7/Factory | Build established: Bothacker-Mutant 8186 | -7/Factory | Discovered new exit (range 7) 8611 | -7/Factory | Build established: Mutant 9022 | -7/Factory | Discovered new exit (range 7) 9091 | -7/Factory | Build established: Bothacker-Mutant 9561 | -7/Factory | Identified exit to Garrison 9561 | -7/Factory | Entered Garrison 9851 | -7/Garrison | Expanded RIF knowledge: Zone Cloak 9918 | -7/Garrison | Triggered checkpoint 9972 | -7/Garrison | Garrison Relay disabled 10080 | -7/Garrison | Triggered checkpoint 10232 | -7/Garrison | Build established: Mutant 10474 | -7/Garrison | Discovered new exit (range 14) 10962 | -7/Garrison | Entered Factory 12163 | -7/Factory | Build established: Bothacker-Mutant 12477 | -7/Factory | Core integrity fell below 50% 12542 | -7/Factory | Identified exit to Garrison 12542 | -7/Factory | Entered Garrison 12641 | -7/Garrison | Lost 3 parts (1p2u) 12962 | -7/Garrison | Found embedded Infiltrators 13112 | -7/Garrison | Triggered checkpoint 13223 | -7/Garrison | Garrison Relay disabled 13378 | -7/Garrison | Triggered checkpoint 13392 | -7/Garrison | Triggered checkpoint 13428 | -7/Garrison | Triggered checkpoint 13650 | -7/Garrison | Discovered new exit (range 12) 13884 | -7/Garrison | Triggered checkpoint 13937 | -7/Garrison | Expanded RIF knowledge: Threat Obfuscation 13987 | -7/Garrison | Garrison Relay disabled 14025 | -7/Garrison | Learned Factory security intel 14157 | -7/Garrison | Entered Factory 14157 | -6/Factory | Accompanied by 1 ally 14157 | -6/Factory | Evolved 2 slots: Propulsion x1, Utility x1 14635 | -6/Factory | Lost 3 parts (1p1n1u) 15087 | -6/Factory | Lost 7 parts (2n3u2w) 15647 | -6/Factory | Build established: Bothacker-Assassin 15651 | -6/Factory | Found Prototype Launcher 15651 | -6/Factory | Identified Scatter Rocket Array 15657 | -6/Factory | Found Scatter Rocket Array 15789 | -6/Factory | Found Scatter Rocket Array 16465 | -6/Factory | Build established: Bothacker-Mutant 16884 | -6/Factory | Cargo convoy interrupted 16927 | -6/Factory | Core integrity fell below 50% 16987 | -6/Factory | Lost 8 parts (3n4u1w) 17201 | -6/Factory | Destroyed 7 combat bots 17231 | -6/Factory | Core integrity fell below 20% 17235 | -6/Factory | Destroyed by H-66 Slayer with Gauss Rifle Last Messages --------------- 17221_ H-66 Slayer destroyed. 17221_ Slug penetrates Earth. 17224_ Penetrated by Slug. 17224_ Carbon-fiber Leg destroyed. 17224_ Relay Coupler [Sentry] destroyed. 17224_ Knocked back. 17224_ Penetrated by Slug. 17224_ Slug penetrates Wall. 17225_ Acquired 2 matter. 17225_ T-07 Excavator destroyed. 17226_ Rnf. Deuterium Engine destroyed. 17226_ Knocked back. 17227_ System corrupted: Substantial component data lost. 17228_ The unstable cave ceiling collapses. 17228_ Penetrated by Slug. 17228_ Lrn. Missile Launcher destroyed. 17230_ Knocked back. 17231_ Slug penetrates Wall. 17232_ Knocked back. 17234_ Penetrated by Slug. Map ----- +----------------------------------------------------+ | | | | | | | | | | | | | | | | | | | | | | | | | | | | | | | | | | | | | | | | | | | | | ???????????????????????????????##????????????????? | | ????????????????????????###### ###??????????????? | | ????????????????????????# # #??????????????? | | ??????????????????????###@%% # #??????????????? | | ?????????????????????#### % ## ##?????????????? | | ????????????????????# # #?????????????? | | ????????????????????# ! " # #?????????????? | | ????????????????????## "G" ###########???? | | ???????????????????# """ ## #???? | | ???????????????????# # ##### ! #???? | | ??????????????????# ## ### +% #???? | | ?????????????????# %#### # """"""" #???? | | ???????????????? + """"""" #???? | | ??????????????? # """"""" #???? | | ????????????? = # """"""" #???? | | ?????????????? ! #%% % #???? | | ???????????????? = ##/##########?? | | ??????????????? " H % ##%# #?? | | ???????????????? ? = ## # "" ### | | ??????????????????? h ##### # ! ## | | ????????????????????? h ??????# # ## | | ?????????????????????? ????????# % # | | ???????????????????????????????????## ## | | ???????????????????????????????????# | | ???????????????????????????????????# | | ???????????????????????????????????# | | ???????????????????????????????????# | | ???????????????????????????????????# | +----------------------------------------------------+ Best States ------------- Heat Dissipation 64 Energy Generation 16 Energy Capacity 290 Matter Stores 300 Matter Capacity 300 Sight Range 16 Terrain Scan Range 20 Terrain Scan Density 10 Armor Coverage 750 Evasion (%) 40 Targeting Accuracy 5 Recoil Reduction 4 Matter Filtering 30 Kinecelleration 30 Salvage Targeting 2 Relay Coupler Types 3 Relay Coupler Value 58 Item Schematics ----------------- Huge Storage Unit | -8/Materials | Scanalyzed Exp. Sensor Array | -8/Materials | Scanalyzed Adv. Treads | -7/Factory | Scanalyzed Scatter Rocket Array | -6/Factory | Scanalyzed Robot Schematics ------------------ None Fabricated ------------ Nothing Alien Tech Used ----------------- None Achievements -------------- None Challenges ------------ None Game ------ Seed SpacefoldComponentGenerator Manual? 0 Play Time 01:52:59 Cumulative 185.9 hours Start 2023.03.22 @ 10:19:25 End 2023.03.22 @ 13:38:24 Sessions 1 Manual Loads 0 Difficulty Rogue Special Mode None Game No. 72 Rogue 56 Adventurer 8 Explorer 8 Win Type - Total 13 Types 7/0/3/1/1/1/0/0/0 Lore% 83 Gallery% 78 Achievement% 71 Wizard Run 0 Options --------- ASCII 1 Keyboard 0 Movement Vi Keybinds 0 Fullscreen 1 Font 18/CogWide Map View 76x50 Tactical HUD 1 Map Filters NONE Filters NONE Steam X RUN: c8604067-9fa0-4252-aa3d-dd056193eab7